fUSD/lending_fUSD_20250811
["ID","MTS","AMOUNT","RATE_DAILY","PERIOD"]
[378542943,1754909183325,-212.93301731,0.00015652,2]
[378542944,1754909185840,-242.53079371,0.00015652,2]
[378542945,1754909190255,-208.33180686,0.00015652,2]
[378542947,1754909206508,514.0,0.00014905,2]
[378542949,1754909216325,-197.74952998,0.00015652,2]
[378542950,1754909219616,-209.86156,0.00015652,2]
[378542951,1754909222501,-240.13844,0.00015651,2]
[378542952,1754909225734,-59.86156,0.00015651,2]
[378542953,1754909225757,-240.13844,0.00015652,2]
[378542954,1754909228975,-151.0,0.00015652,2]
[378542955,1754909233262,-210.33627218,0.00015652,2]
[378542956,1754909236467,-236.10539304,0.00015652,2]
[378542957,1754909242808,-218.01625003,0.00015652,2]
[378542958,1754909247251,-192.55222464,0.00015554,2]
[378542959,1754909247274,-72.40355536,0.00015652,2]
[378542960,1754909250028,-239.66372782,0.00015652,2]
[378542961,1754909252879,-176.94526593,0.00015652,2]
[378542962,1754909256856,-255.44302189,0.00015652,2]
[378542963,1754909259065,-258.34941641,0.00015652,2]
[378542964,1754909262415,-236.57901805,0.00015652,2]
[378542965,1754909266402,344.92844,0.00014905,2]
[378542967,1754909286678,-200.0,0.00015626,2]
[378542968,1754909286705,-119.07156554,0.00015639,2]
[378542969,1754909296223,169.07156,0.00014905,2]
[378542973,1754909366092,-167.81,0.00015429,2]
[378542974,1754909366113,-300.0,0.00015608,2]
[378542975,1754909366134,-180.92843446,0.00015639,2]
[378542976,1754909366154,-92.89991214,0.00015639,2]
[378542977,1754909393085,-263.94250375,0.00015537,2]
[378542978,1754909418752,-217.15931613,0.00015537,2]
[378542979,1754909420441,-158.84068387,0.00015537,2]
[378542985,1754909431931,-2674.30749625,0.00015537,2]
[378542986,1754909431941,-628.56393603,0.00015552,2]
[378542987,1754909431951,-157.10008786,0.00015639,2]
[378542988,1754909431961,-1200.0,0.00015651,2]
[378542989,1754909431973,-1443.71772529,0.00015652,2]
[378542990,1754909431985,-335.50719994,0.00015652,2]
[378542991,1754909432031,-2234.13756543,0.00015652,2]
[378542992,1754909432043,-1117.44892357,0.00015652,2]
[378542993,1754909432055,-2357.934648,0.00015652,2]
[378542994,1754909432066,-265.37201874,0.00015652,2]
[378542995,1754909432118,-18114.95131114,0.00015652,2]
[378542996,1754909432127,-300.0,0.00015668,2]
[378542997,1754909432137,-262.52,0.00015677,2]
[378542998,1754909432146,-250.0,0.00015732,2]
[378542999,1754909432155,-2658.79319634,0.00015745,2]
[378543000,1754909432165,-1803.48822848,0.00015754,2]
[378543002,1754909432174,-12838.48460502,0.00015755,2]
[378543003,1754909432186,-1730.63247615,0.00015755,2]
[378543008,1754909432316,-269.08572978,0.00015755,2]
[378543014,1754909432482,-7674.46918905,0.00015755,2]
[378543016,1754909432493,-629.1,0.00015861,2]
[378543018,1754909432502,-150.0,0.00015985,2]
[378543020,1754909432513,-1152.0249003,0.00016,2]
[378543022,1754909432524,-357.99,0.00016,2]
[378543030,1754909432586,-787.37584411,0.00016,2]
[378543238,1754909437805,-432.33102559,0.00016,2]
[378543240,1754909437814,-61.12294895,0.00016102,2]
[378543241,1754909437825,-1130.22,0.00016197,2]
[378543244,1754909437834,-155.13,0.00016313,2]
[378543245,1754909437843,-381.07325503,0.00016446,2]
[378543246,1754909437856,-168.92674497,0.00016446,2]
[378543247,1754909437865,-514.05769059,0.00016447,2]
[378543248,1754909437876,-940.80230941,0.00016447,2]
[378543249,1754909437885,-500.0,0.00016493,2]
[378543250,1754909437894,-377.0,0.000165,2]
[378543251,1754909437903,-165.17449233,0.00016528,2]
[378543252,1754909437913,-1300.49858111,0.00016529,2]
[378543253,1754909437923,-16.60645197,0.00016529,2]
[378543254,1754909437934,-157.22594183,0.00016529,2]
[378543255,1754909437945,-576.97226436,0.00016529,2]
[378543256,1754909437955,-250.7741055,0.00016529,2]
[378543257,1754909437976,-328.42748325,0.00016529,2]
[378543258,1754909437986,-2978.65270606,0.0001653,2]
[378543259,1754909437997,-460.6,0.00016543,2]
[378543260,1754909438006,-211.03043915,0.00016572,2]
[378543261,1754909438015,-154.38490915,0.00016573,2]
[378543262,1754909438025,-162.86565292,0.0001662,2]
[378543263,1754909438034,-500.0,0.00016621,2]
[378543264,1754909438044,-500.0,0.00016621,2]
[378543265,1754909438053,-500.0,0.00016621,2]
[378543266,1754909438062,-524.10281767,0.00016621,2]
[378543267,1754909438070,-1438.09495884,0.00016621,2]
[378543268,1754909438079,-401.22931079,0.00016627,2]
[378543269,1754909438088,-400.0,0.00016627,2]
[378543270,1754909438098,-400.0,0.00016627,2]
[378543271,1754909438107,-15756.20562936,0.00016628,2]
[378543272,1754909438129,-16703.06996013,0.00016628,2]
[378543273,1754909438140,-778.58817429,0.00016628,2]
[378543275,1754909438152,-808.71829025,0.00016628,2]
[378543278,1754909438163,-496.59,0.00016628,2]
[378543280,1754909438174,-1085.09011866,0.00016628,2]
[378543282,1754909438186,-10858.73169681,0.00016628,2]
[378543284,1754909438197,-2865.32789436,0.00016628,2]
[378543288,1754909438229,-3116.14834175,0.00016628,2]
[378543290,1754909438240,-3164.57992995,0.00016628,2]
[378543293,1754909438251,-9369.639992,0.00016628,2]
[378543295,1754909438263,-340.45158515,0.00016628,2]
[378543297,1754909438274,-835.22812059,0.00016628,2]
[378543300,1754909438300,-2685.1753566,0.00016628,2]
[378543303,1754909438311,-472.054999,0.00016628,2]
[378543305,1754909438322,-406.64253907,0.00016628,2]
[378543307,1754909438333,-2184.70734481,0.00016628,2]
[378543309,1754909438344,-1338.20796462,0.00016628,2]
[378543311,1754909438355,-3347.58366,0.00016628,2]
[378543316,1754909438395,-20998.66323288,0.00016628,2]
[378543319,1754909438407,-401.616215,0.00016628,2]
[378543321,1754909438417,-28362.09519562,0.00016628,2]
[378543323,1754909438429,-3010.26621068,0.00016628,2]
[378543541,1754909440819,-2104.14898492,0.00016628,2]
[378543545,1754909440847,-1888.098074,0.00016628,2]
[378543547,1754909440858,-2358.6,0.00016628,2]
[378543549,1754909440870,-1260.3,0.00016628,2]
[378543551,1754909440880,-2863.94120799,0.00016628,2]
[378543553,1754909440892,-591.46997237,0.00016628,2]
[378543561,1754909440951,-9504.30284047,0.00016628,2]
[378543566,1754909440989,-15365.39068461,0.00016628,2]
[378543568,1754909441000,-9526.47575124,0.00016628,2]
[378543691,1754909442187,-0.00491968,0.00016628,2]
[378543695,1754909442216,-23658.9401434,0.00016628,2]
[378543697,1754909442227,-955.67978028,0.00016628,2]
[378543699,1754909442238,-3682.83077403,0.00016628,2]
[378543701,1754909442249,-300.86614897,0.00016628,2]
[378543798,1754909443216,-474.38004992,0.00016628,2]
[378543801,1754909443227,-306.0,0.00016628,2]
[378543803,1754909443238,-1461.91586799,0.00016628,2]
[378543805,1754909443249,-3818.27439152,0.00016628,2]
[378543807,1754909443261,-4493.28069742,0.00016628,2]
[378543812,1754909443299,-3457.64111333,0.00016628,2]
[378543814,1754909443311,-2081.80298648,0.00016628,2]
[378543816,1754909443322,-17275.88767176,0.00016628,2]
[378543819,1754909443333,-33945.7035406,0.00016628,2]
[378543821,1754909443344,-631.0,0.00016628,2]
[378543824,1754909443367,-650.0,0.00016628,2]
[378543827,1754909443378,-15605.61353488,0.00016628,2]
[378543830,1754909443398,-764.63174101,0.00016628,2]
[378543832,1754909443409,-933.975,0.00016628,2]
[378543835,1754909443429,-1121.145,0.00016628,2]
[378543837,1754909443439,-975.31732,0.00016628,2]
[378543839,1754909443450,-15343.18265637,0.00016628,2]
[378543842,1754909443461,-550.10755025,0.00016628,2]
[378543846,1754909443485,-6019.73832867,0.00016628,2]
[378543881,1754909443785,-433.7526704,0.00016628,2]
[378543884,1754909443803,-322.12437,0.00016628,2]
[378543886,1754909443815,-737.50052905,0.00016628,2]
[378543888,1754909443827,-55099.63188266,0.00016628,2]
[378543890,1754909443838,-287.02540688,0.00016628,2]
[378543893,1754909443849,-1730.7967739,0.00016628,2]
[378543896,1754909443871,-12261.57602102,0.00016628,2]
[378543898,1754909443882,-24151.42614342,0.00016628,2]
[378543900,1754909443892,-14412.73582692,0.00016628,2]
[378543902,1754909443904,-562.6023957,0.00016628,2]
[378543905,1754909443915,-1394.8043001,0.00016628,2]
[378543907,1754909443927,-413.31493846,0.00016628,2]
[378543913,1754909443976,-296.80314603,0.00016628,2]
[378543915,1754909443986,-467.13932822,0.00016628,2]
[378543918,1754909443997,-1037.80892226,0.00016628,2]
[378543920,1754909444008,-1455.29107774,0.00016628,2]
[378543922,1754909444019,-649.83334176,0.00016628,2]
[378543924,1754909444031,-711.44462403,0.00016628,2]
[378543926,1754909444042,-309.86593324,0.00016628,2]
[378543928,1754909444054,-297.3600018,0.00016628,2]
[378543931,1754909444066,-17084.38644673,0.00016628,2]
[378543932,1754909444075,-1750.16,0.00016628,2]
[378543934,1754909444084,-5289.19,0.00016628,2]
[378543936,1754909444093,-3894.52,0.00016628,2]
[378543938,1754909444102,-1469.49,0.00016628,2]
[378543940,1754909444112,-400.0,0.00016628,2]
[378543942,1754909444121,-400.0,0.00016628,2]
[378543944,1754909444130,-400.0,0.00016628,2]
[378543947,1754909444140,-7699.09,0.00016628,2]
[378543949,1754909444150,-962.74,0.00016628,2]
[378543951,1754909444159,-400.0,0.00016628,2]
[378543953,1754909444169,-400.0,0.00016628,2]
[378543955,1754909444178,-1965.85,0.00016628,2]
[378543957,1754909444188,-1228.27,0.00016628,2]
[378543959,1754909444197,-401.82827507,0.00016628,2]
[378543960,1754909444208,-401.51210873,0.00016628,2]
[378543962,1754909444219,-400.73237109,0.00016628,2]
[378543964,1754909444228,-2864.10365673,0.00016628,2]
[378543967,1754909444240,-6036.72634327,0.00016628,2]
[378543969,1754909444249,-302.66563084,0.00016628,2]
[378543971,1754909444259,-1215.7027721,0.00016628,2]
[378543973,1754909444270,-5113.1072279,0.00016628,2]
[378543975,1754909444280,-1872.66,0.00016628,2]
[378543977,1754909444289,-500.0,0.00016628,2]
[378543979,1754909444299,-500.0,0.00016628,2]
[378543981,1754909444308,-606.3,0.00016628,2]
[378543983,1754909444317,-1500.17,0.00016628,2]
[378543985,1754909444327,-2266.37,0.00016628,2]
[378543987,1754909444336,-453.04,0.00016628,2]
[378543989,1754909444345,-409.1967707,0.00016628,2]
[378543991,1754909444354,-1275.24,0.00016628,2]
[378543993,1754909444363,-518.15,0.00016628,2]
[378543995,1754909444373,-580.42,0.00016628,2]
[378543997,1754909444382,-400.0,0.00016629,2]
[378543999,1754909444391,-400.0,0.00016629,2]
[378544001,1754909444400,-148.15098405,0.00016629,2]
[378544003,1754909444412,-388.80901595,0.00016629,2]
[378544005,1754909444421,-542.12,0.00016629,2]
[378544007,1754909444430,-542.12,0.00016629,2]
[378544009,1754909444439,-400.0,0.00016629,2]
[378544011,1754909444449,-400.0,0.00016629,2]
[378544013,1754909444458,-401.91829049,0.00016629,2]
[378544015,1754909444467,-400.0,0.00016629,2]
[378544018,1754909444478,-400.0,0.00016629,2]
[378544020,1754909444487,-400.0,0.00016629,2]
[378544022,1754909444496,-400.0,0.00016629,2]
[378544024,1754909444505,-400.0,0.00016629,2]
[378544026,1754909444515,-400.0,0.00016629,2]
[378544028,1754909444524,-400.0,0.00016629,2]
[378544030,1754909444533,-400.0,0.00016629,2]
[378544032,1754909444542,-400.0,0.00016629,2]
[378544034,1754909444552,-400.0,0.00016629,2]
[378544036,1754909444561,-1011.54,0.00016629,2]
[378544038,1754909444571,-724.51883334,0.00016629,2]
[378544048,1754909444657,-548.46116666,0.00016629,2]
[378544050,1754909444667,-400.0,0.00016629,2]
[378544052,1754909444678,-400.0,0.00016629,2]
[378544054,1754909444688,-400.0,0.00016629,2]
[378544056,1754909444697,-400.0,0.00016629,2]
[378544058,1754909444706,-415.55,0.00016629,2]
[378544060,1754909444715,-400.0,0.00016629,2]
[378544062,1754909444725,-400.0,0.00016629,2]
[378544064,1754909444735,-400.0,0.00016629,2]
[378544066,1754909444745,-400.0,0.00016629,2]
[378544068,1754909444755,-400.0,0.00016629,2]
[378544070,1754909444764,-400.0,0.00016629,2]
[378544072,1754909444773,-400.0,0.00016629,2]
[378544074,1754909444783,-322.66458567,0.00016629,2]
[378544079,1754909444821,-77.33541433,0.00016629,2]
[378544081,1754909444830,-601.79001464,0.00016629,2]
[378544203,1754909445881,-669.38998536,0.00016629,2]
[378544206,1754909445891,-400.0,0.00016629,2]
[378544209,1754909445901,-409.18065716,0.00016629,2]
[378544211,1754909445911,-206.79952512,0.00016629,2]
[378544216,1754909445923,-195.82647635,0.00016629,2]
[378544219,1754909445932,-400.0,0.00016629,2]
[378544222,1754909445942,-363.85744399,0.00016629,2]
[378544225,1754909445953,-36.14255601,0.00016629,2]
[378544228,1754909445962,-3459.69259177,0.00016629,2]
[378544231,1754909445973,-941.37740823,0.00016629,2]
[378544233,1754909445983,-400.0,0.00016629,2]
[378544235,1754909445993,-406.84365677,0.00016629,2]
[378544237,1754909446002,-223.32903804,0.00016629,2]
[378544241,1754909446013,-176.67096196,0.00016629,2]
[378544244,1754909446023,-700.69,0.00016629,2]
[378544247,1754909446033,-400.0,0.00016629,2]
[378544250,1754909446043,-400.0,0.00016629,2]
[378544253,1754909446053,-1247.82,0.00016629,2]
[378544256,1754909446063,-400.0,0.00016629,2]
[378544259,1754909446073,-400.0,0.00016629,2]
[378544262,1754909446082,-400.0,0.00016629,2]
[378544265,1754909446094,-406.48211974,0.00016629,2]
[378544267,1754909446103,-400.0,0.00016629,2]
[378544269,1754909446112,-400.0,0.00016629,2]
[378544271,1754909446122,-2672.75,0.00016629,2]
[378544273,1754909446131,-400.0,0.00016629,2]
[378544275,1754909446141,-400.0,0.00016629,2]
[378544277,1754909446151,-563.95,0.00016629,2]
[378544279,1754909446160,-833.42,0.00016629,2]
[378544281,1754909446170,-527.19,0.00016629,2]
[378544283,1754909446179,-1580.32,0.00016629,2]
[378544285,1754909446188,-400.0,0.00016629,2]
[378544287,1754909446197,-416.79140782,0.00016629,2]
[378544289,1754909446207,-400.0,0.00016629,2]
[378544291,1754909446216,-402.37523614,0.00016629,2]
[378544293,1754909446225,-400.0,0.00016629,2]
[378544295,1754909446234,-2223.44,0.00016629,2]
[378544297,1754909446244,-400.0,0.00016629,2]
[378544299,1754909446253,-1228.31,0.00016629,2]
[378544301,1754909446262,-400.0,0.00016629,2]
[378544303,1754909446272,-400.0,0.00016629,2]
[378544305,1754909446281,-400.0,0.00016629,2]
[378544306,1754909446291,-991.19,0.00016629,2]
[378544308,1754909446301,-620.9,0.00016629,2]
[378544310,1754909446310,-400.0,0.00016629,2]
[378544312,1754909446319,-673.0,0.00016629,2]
[378544314,1754909446329,-1194.31,0.00016629,2]
[378544316,1754909446338,-400.0,0.00016629,2]
[378544318,1754909446348,-695.535599,0.00016629,2]
[378544320,1754909446357,-406.39889387,0.00016629,2]
[378544322,1754909446366,-496.18,0.00016629,2]
[378544324,1754909446377,-3829.64,0.00016629,2]
[378544326,1754909446387,-400.0,0.00016629,2]
[378544328,1754909446396,-10020.379893,0.00016629,2]
[378544330,1754909446405,-574.46,0.00016629,2]
[378544332,1754909446414,-20424.440212,0.00016629,2]
[378544334,1754909446423,-400.0,0.00016629,2]
[378544336,1754909446432,-400.0,0.00016629,2]
[378544338,1754909446442,-400.0,0.00016629,2]
[378544340,1754909446451,-403.99026547,0.00016629,2]
[378544342,1754909446460,-1246.12,0.00016629,2]
[378544344,1754909446469,-400.0,0.00016629,2]
[378544346,1754909446478,-400.0,0.00016629,2]
[378544347,1754909446487,-1109.55,0.00016629,2]
[378544349,1754909446496,-2075.89,0.00016629,2]
[378544351,1754909446505,-402.03958255,0.00016629,2]
[378544353,1754909446514,-400.0,0.00016629,2]
[378544355,1754909446523,-1052.82,0.00016629,2]
[378544357,1754909446532,-400.0,0.00016629,2]
[378544359,1754909446542,-400.0,0.00016629,2]
[378544361,1754909446551,-400.0,0.00016629,2]
[378544363,1754909446561,-400.0,0.00016629,2]
[378544365,1754909446570,-400.0,0.00016629,2]
[378544367,1754909446579,-400.0,0.00016629,2]
[378544369,1754909446588,-1679.62,0.00016629,2]
[378544371,1754909446598,-484.03,0.00016629,2]
[378544373,1754909446607,-400.995659,0.00016629,2]
[378544375,1754909446616,-765.74,0.00016629,2]
[378544377,1754909446626,-680.48,0.00016629,2]
[378544379,1754909446635,-400.0,0.00016629,2]
[378544381,1754909446644,-158.86847076,0.00016629,2]
[378544383,1754909446653,-674.6,0.00016629,2]
[378544385,1754909446663,-17317.74018944,0.00016629,2]
[378544387,1754909446676,-978.71494356,0.00016629,2]
[378544389,1754909446689,-1038.090569,0.00016629,2]
[378544391,1754909446698,-400.0,0.00016629,2]
[378544393,1754909446708,-564.62,0.00016629,2]
[378544395,1754909446718,-400.0,0.00016629,2]
[378544397,1754909446729,-967.88,0.00016629,2]
[378544399,1754909446739,-322.95006848,0.00016629,2]
[378544401,1754909446750,-535.40993152,0.00016629,2]
[378544403,1754909446762,-400.0,0.00016629,2]
[378544405,1754909446772,-2079.31,0.00016629,2]
[378544407,1754909446781,-400.0,0.00016629,2]
[378544409,1754909446791,-400.0,0.00016629,2]
[378544411,1754909446800,-400.0,0.00016629,2]
[378544412,1754909446809,-400.0,0.00016629,2]
[378544414,1754909446819,-400.0,0.00016629,2]
[378544416,1754909446829,-1539.88,0.00016629,2]
[378544418,1754909446839,-400.0,0.00016629,2]
[378544420,1754909446848,-830.47,0.00016629,2]
[378544422,1754909446858,-400.0,0.00016629,2]
[378544424,1754909446868,-8229.54,0.00016629,2]
[378544426,1754909446877,-400.0,0.00016629,2]
[378544428,1754909446889,-653.46,0.00016629,2]
[378544430,1754909446904,-425.61200783,0.00016629,2]
[378544432,1754909446914,-400.0,0.00016629,2]
[378544434,1754909446924,-400.0,0.00016629,2]
[378544436,1754909446934,-877.14,0.00016629,2]
[378544438,1754909446943,-400.0,0.00016629,2]
[378544440,1754909446953,-400.0,0.00016629,2]
[378544442,1754909446962,-437.1,0.00016629,2]
[378544444,1754909446971,-423.9,0.00016629,2]
[378544446,1754909446981,-400.0,0.00016629,2]
[378544448,1754909446990,-420.17,0.00016629,2]
[378544450,1754909446999,-400.0,0.00016629,2]
[378544452,1754909447008,-2254.61,0.00016629,2]
[378544454,1754909447018,-400.0,0.00016629,2]
[378544456,1754909447027,-299.51656813,0.00016629,2]
[378544458,1754909447037,-1107.12,0.00016629,2]
[378544460,1754909447046,-400.0,0.00016629,2]
[378544461,1754909447056,-400.0,0.00016629,2]
[378544463,1754909447066,-400.0,0.00016629,2]
[378544465,1754909447075,-400.0,0.00016629,2]
[378544467,1754909447085,-400.0,0.00016629,2]
[378544469,1754909447095,-400.0,0.00016629,2]
[378544471,1754909447105,-400.0,0.00016629,2]
[378544473,1754909447114,-400.0,0.00016629,2]
[378544475,1754909447124,-400.0,0.00016629,2]
[378544477,1754909447133,-400.0,0.00016629,2]
[378544479,1754909447143,-400.0,0.00016629,2]
[378544481,1754909447152,-400.0,0.00016629,2]
[378544483,1754909447161,-400.0,0.00016629,2]
[378544485,1754909447170,-400.0,0.00016629,2]
[378544487,1754909447180,-400.0,0.00016629,2]
[378544489,1754909447189,-400.0,0.00016629,2]
[378544491,1754909447198,-401.55519443,0.00016629,2]
[378544493,1754909447207,-496.38,0.00016629,2]
[378544495,1754909447217,-692.62,0.00016629,2]
[378544497,1754909447226,-400.0,0.00016629,2]
[378544499,1754909447235,-910.06,0.00016629,2]
[378544501,1754909447244,-400.0,0.00016629,2]
[378544503,1754909447253,-400.0,0.00016629,2]
[378544505,1754909447262,-400.0,0.00016629,2]
[378544507,1754909447272,-400.0,0.00016629,2]
[378544509,1754909447282,-2193.5,0.00016629,2]
[378544511,1754909447292,-551.19,0.00016629,2]
[378544513,1754909447302,-400.0,0.00016629,2]
[378544515,1754909447311,-482.57,0.00016629,2]
[378544516,1754909447321,-511.62,0.00016629,2]
[378544518,1754909447330,-861.32,0.00016629,2]
[378544520,1754909447340,-655.1,0.00016629,2]
[378544522,1754909447349,-400.0,0.00016629,2]
[378544524,1754909447359,-500.0,0.00016629,2]
[378544526,1754909447369,-500.0,0.00016629,2]
[378544528,1754909447379,-400.0,0.00016629,2]
[378544530,1754909447388,-644.16,0.00016629,2]
[378544532,1754909447398,-400.0,0.00016629,2]
[378544534,1754909447407,-400.0,0.00016629,2]
[378544536,1754909447416,-2110.34,0.00016629,2]
[378544538,1754909447425,-400.0,0.00016629,2]
[378544540,1754909447435,-400.0,0.00016629,2]
[378544542,1754909447444,-767.97,0.00016629,2]
[378544544,1754909447453,-761.09,0.00016629,2]
[378544546,1754909447462,-400.0,0.00016629,2]
[378544548,1754909447471,-508.6,0.00016629,2]
[378544550,1754909447480,-777.37,0.00016629,2]
[378544552,1754909447489,-400.0,0.00016629,2]
[378544554,1754909447499,-400.0,0.00016629,2]
[378544555,1754909447507,-400.0,0.00016629,2]
[378544557,1754909447517,-1952.02,0.00016629,2]
[378544559,1754909447526,-400.0,0.00016629,2]
[378544561,1754909447535,-3713.09,0.00016629,2]
[378544563,1754909447545,-450.86,0.00016629,2]
[378544565,1754909447554,-542.12,0.0001663,2]
[378544567,1754909447564,-542.12,0.0001663,2]
[378544569,1754909447574,-500.0,0.0001663,2]
[378544571,1754909447583,-500.0,0.0001663,2]
[378544573,1754909447592,-500.0,0.0001663,2]
[378544575,1754909447601,-500.0,0.0001663,2]
[378544577,1754909447610,-123719.06344294,0.00016631,2]
[378544579,1754909447623,-1180.66697992,0.00016631,2]
[378544581,1754909447634,-622.15636844,0.00016631,2]
[378544586,1754909447666,-4000.0,0.00016631,2]
[378544588,1754909447681,-363.88,0.00016631,2]
[378544590,1754909447692,-7967.17149521,0.00016631,2]
[378544592,1754909447704,-781.48464017,0.00016631,2]
[378544594,1754909447715,-380.2144173,0.00016631,2]
[378544596,1754909447726,-9580.90484909,0.00016631,2]
[378544600,1754909447755,-2839.267796,0.00016631,2]
[378544602,1754909447768,-117067.25526735,0.00016631,2]
[378544604,1754909447778,-2194.03761805,0.00016631,2]
[378544606,1754909447789,-4561.25,0.00016631,2]
[378544609,1754909447801,-374.8527527,0.00016631,2]
[378544611,1754909447813,-20031.67711792,0.00016631,2]
[378544613,1754909447823,-322.8916,0.00016631,2]
[378544615,1754909447834,-1104.89183922,0.00016631,2]
[378544623,1754909448116,-462.26535075,0.00016631,2]
[378544625,1754909448134,-6872.33900846,0.00016631,2]
[378544627,1754909448150,-150942.70688811,0.00016631,2]
[378544629,1754909448161,-2954.93571423,0.00016631,2]
[378544631,1754909448173,-2025.92778583,0.00016631,2]
[378544634,1754909448185,-1404.4,0.00016631,2]
[378544636,1754909448196,-263.258183,0.00016631,2]
[378544638,1754909448207,-26641.96088531,0.00016631,2]
[378544640,1754909448217,-500.0,0.00016673,2]
[378544642,1754909448227,-500.0,0.00016673,2]
[378544644,1754909448236,-545.98687819,0.00016673,2]
[378544646,1754909448246,-183.31,0.00016716,2]
[378544648,1754909448255,-1300.49858106,0.00016792,2]
[378544650,1754909448264,-579.2015887,0.00016792,2]
[378544652,1754909448275,-211.03043914,0.00016803,2]
[378544654,1754909448284,-400.0,0.00016901,2]
[378544656,1754909448293,-400.0,0.00016901,2]
[378544658,1754909448303,-1750.16,0.00016902,2]
[378544660,1754909448312,-5289.19,0.00016902,2]
[378544661,1754909448321,-3894.52,0.00016902,2]
[378544663,1754909448330,-1469.49,0.00016902,2]
[378544665,1754909448340,-400.0,0.00016902,2]
[378544666,1754909448349,-7699.09,0.00016902,2]
[378544667,1754909448360,-400.0,0.00016902,2]
[378544668,1754909448369,-962.74,0.00016902,2]
[378544669,1754909448379,-1965.85,0.00016902,2]
[378544670,1754909448389,-1228.27,0.00016902,2]
[378544671,1754909448399,-6143.90075302,0.00016902,2]
[378544676,1754909449092,-359.53360583,0.00016629,2]
[378544736,1754909475868,522.0,0.00014905,2]
[378544740,1754909526366,318.13,0.00013699,2]
[378544747,1754909867266,-160.36231303,0.0001543,2]
[378544748,1754909867291,-39.63768697,0.00015467,2]
[378544749,1754909882250,-167.02,0.00015467,2]
[378544751,1754909922895,170.0,0.0001545,7]
[378544756,1754909942278,-310.37318673,0.0001516,2]
[378544757,1754909945016,-203.62681327,0.0001516,2]
[378544759,1754909960106,182.74,0.00012303,2]
[378544760,1754909980823,250.0,0.00015,2]
[378544761,1754909987287,-280.67943693,0.0001516,2]
[378544762,1754909992036,-233.32056307,0.0001516,2]
[378544763,1754909992059,-35.59003333,0.00015422,2]
[378544764,1754909994337,-221.08369162,0.00015422,2]
[378544768,1754910106001,-169.70297184,0.00015135,2]
[378544770,1754910218741,-196.73905165,0.00015052,2]
[378544771,1754910221709,-3.26094835,0.00015052,2]
[378544772,1754910221733,-255.96339061,0.00015062,2]
[378544773,1754910224698,-246.83660939,0.00015062,2]
[378544774,1754910224720,-141.28,0.00015068,2]
[378544775,1754910251623,-203.81453385,0.00015056,2]
[378544776,1754910253992,-406.75004334,0.00015056,2]
[378544777,1754910256638,-172.87331382,0.00015056,2]
[378544778,1754910259208,-30.09464607,0.00015056,2]
[378544779,1754910259230,-37.92323266,0.00015068,2]
[378544780,1754910259251,-135.50353957,0.00015135,2]
[378544781,1754910260392,-154.51472857,0.00015135,2]
[378544783,1754910307262,-187.55876002,0.00015135,2]
[378544784,1754910307285,-80.55051122,0.00015144,2]
[378544785,1754910330886,-216.134783,0.00015144,2]
[378544786,1754910335353,-152.19,0.00015144,2]
[378544789,1754910469321,-339.68279143,0.00015125,2]
[378544790,1754910473796,-179.20323265,0.00015064,2]
[378544791,1754910473819,-156.91773135,0.00015125,2]
[378544793,1754910484726,324.87,0.00013699,2]
[378544794,1754910562143,-500.0,0.00015124,2]
[378544795,1754910562165,-84.53766401,0.00015124,2]
[378544798,1754910623744,-240.70797037,0.00015048,2]
[378544799,1754910628279,-338.20833801,0.00015048,2]
[378544807,1754910632200,-171.86640562,0.00015048,2]
[378544808,1754910632210,-179.84,0.00015074,2]
[378544809,1754910632219,-13.87359438,0.00015124,2]